[Event "FIDE World School-ch O-13 2025"]
[Site "Vrnjacka Banja"]
[Date "2025.03.22"]
[Round "3.1"]
[White "Yurasov, Matfey"]
[Black "Baturin-Vinogradov, Miroslav"]
[Result "1-0"]
[Annotator "RC"]
[ECO "A07"]
[WhiteElo "2271"]
[BlackElo "1912"]
[PlyCount "69"]
[EventDate "2025.03.19"]
[EventType "swiss"]
[EventCountry "SRB"]
[SourceTitle "playchess.com"]
[Source "ChessBase"]
[SourceQuality "1"]
[TimeControl "5400+30"]

1. Nf3 {[%emt 0:00:30]} d5 {[%emt 0:03:28]} 2. g3 {[%emt 0:00:09]} Bg4 {[%emt 0:00:19]} 3. Bg2 {[%emt 0:00:04]} c6 {[%emt 0:00:19]} 4. O-O {[%emt 0:00:06]} Nd7 {[%emt 0:00:35]} 5. h3 {[%emt 0:00:07]} Bh5 {[%emt 0:00:10]} 6. d4 {[%emt 0:00:11]} Ngf6 {[%emt 0:01:12]} 7. c4 {[%emt 0:00:06]} e6 {[%emt 0:00:35]} 8. cxd5 {[%emt 0:00:41]} exd5 {[%emt 0:00:23]} 9. Ne5 {[%emt 0:00:05]} Bg6 {[%emt 0:04:12]} 10. Nc3 {[%emt 0:00:41]} Be7 {[%emt 0:02:20]} 11. f4 {[%emt 0:02:50]} Be4 {[%emt 0:02:42]} 12. Nxe4 {[%emt 0:05:06]} Nxe4 {[%emt 0:00:45]} 13. Bxe4 {[%emt 0:00:25]} dxe4 {[%emt 0:02:18]} 14. Qb3 {[%emt 0:00:04]} Nxe5 {[%emt 0:03:06]} 15. fxe5 {[%emt 0:00:22]} O-O {[%emt 0:05:33]} 16. Be3 {[%emt 0:00:28]} Qd5 {[%emt 0:11:25]} 17. Qxb7 {[%emt 0:10:57]} Qe6 {[%emt 0:00:20]} 18. Rac1 {[%emt 0:00:06]} Qxh3 {[%emt 0:03:20]} 19. Bf4 {[%emt 0:00:07]} Bg5 {[%emt 0:01:35]} 20. Qb3 {[%emt 0:06:49]} Bxf4 {[%emt 0:10:58]} 21. Rxf4 {[%emt 0:00:06]} Rab8 {[%emt 0:01:12]} 22. Qc3 {[%emt 0:00:10]} Qh5 {[%emt 0:09:06]} 23. Rxe4 {[%emt 0:01:05]} f5 {[%emt 0:01:01]} 24. Rf4 {[%emt 0:15:17]} g5 {[%emt 0:03:46]} 25. Rf3 {[%emt 0:00:19]} f4 {[%emt 0:06:00]} 26. Qxc6 {[%emt 0:03:35]} fxg3 {[%emt 0:07:17]} 27. Rxg3 {[%emt 0:00:33]} Rxb2 {[%emt 0:01:54]} 28. Qg2 {[%emt 0:00:16]} Kh8 {[%emt 0:05:29]} 29. Rf1 {[%emt 0:04:28]} Rxf1+ {[%emt 0:04:34]} 30. Qxf1 {[%emt 0:00:06]} Kg8 {[%emt 0:00:19]} 31. Qf5 {[%emt 0:00:13]} h6 {[%emt 0:00:27]} 32. Rc3 {[%emt 0:00:53]} Qf7 {[%emt 0:02:21]} 33. Qe4 {[%emt 0:02:34]} Rxa2 {[%emt 0:02:49]} 34. Rf3 {[%emt 0:00:29]} Ra1+ {[%emt 0:00:19]} 35. Kg2 {[%emt 0:00:01]} 1-0

[Event "FIDE World School-ch O-13 2025"]
[Site "Vrnjacka Banja"]
[Date "2025.03.22"]
[Round "4.1"]
[White "Obidov, Biloliddin"]
[Black "Yurasov, Matfey"]
[Result "1/2-1/2"]
[Annotator "RC"]
[ECO "B22"]
[WhiteElo "2020"]
[BlackElo "2271"]
[PlyCount "113"]
[EventDate "2025.03.19"]
[EventType "swiss"]
[EventCountry "SRB"]
[SourceTitle "playchess.com"]
[Source "ChessBase"]
[SourceQuality "1"]
[TimeControl "5400+30"]

1. e4 {[%emt 0:00:01]} c5 {[%emt 0:03:02]} 2. Nf3 {[%emt 0:00:29]} e6 {[%emt 0:00:05]} 3. c3 {[%emt 0:01:26]} Nf6 {[%emt 0:00:25]} 4. e5 {[%emt 0:00:11]} Nd5 {[%emt 0:00:04]} 5. d4 {[%emt 0:00:05]} cxd4 {[%emt 0:02:17]} 6. cxd4 {[%emt 0:00:03]} d6 {[%emt 0:00:21]} 7. Bc4 {[%emt 0:01:03]} dxe5 {[%emt 0:00:05]} 8. dxe5 {[%emt 0:00:07]} Be7 {[%emt 0:00:10]} 9. O-O {[%emt 0:00:13]} O-O {[%emt 0:00:09]} 10. Bd2 {[%emt 0:04:19]} Bd7 {[%emt 0:17:29]} 11. Nc3 {[%emt 0:00:58]} Bc6 {[%emt 0:00:11]} 12. Qe2 {[%emt 0:06:48]} Nb6 {[%emt 0:07:58]} 13. Bd3 {[%emt 0:02:11]} N8d7 {[%emt 0:00:02]} 14. Bf4 {[%emt 0:08:13]} Nd5 {[%emt 0:00:53]} 15. Nxd5 {[%emt 0:01:57]} Bxd5 {[%emt 0:00:07]} 16. Rfd1 {[%emt 0:00:34]} Qb6 {[%emt 0:02:39]} 17. Ng5 {[%emt 0:08:04]} Bxg5 {[%emt 0:06:09]} 18. Bxg5 {[%emt 0:00:01]} Nxe5 {[%emt 0:00:51]} 19. Qxe5 {[%emt 0:10:19]} f6 {[%emt 0:00:07]} 20. Bxf6 {[%emt 0:00:48]} Rxf6 {[%emt 0:00:06]} 21. Rd2 {[%emt 0:00:18]} Raf8 {[%emt 0:04:48]} 22. Qe3 {[%emt 0:02:59]} Qb4 {[%emt 0:05:56]} 23. a3 {[%emt 0:08:44]} Qh4 {[%emt 0:00:13]} 24. Qg3 {[%emt 0:04:37]} Qh6 {[%emt 0:05:55]} 25. Rc2 {[%emt 0:01:14]} Rf4 {[%emt 0:00:13]} 26. Re1 {[%emt 0:03:17]} Qf6 {[%emt 0:00:42]} 27. Bf1 {[%emt 0:03:31]} h5 {[%emt 0:01:39]} 28. h3 {[%emt 0:02:22]} h4 {[%emt 0:01:32]} 29. Qe3 {[%emt 0:00:01]} Qg6 {[%emt 0:01:12]} 30. Qc1 {[%emt 0:06:27]} R4f5 {[%emt 0:06:46]} 31. Re3 {[%emt 0:05:26]} Rg5 {[%emt 0:00:36]} 32. f3 {[%emt 0:00:33]} Bxf3 {[%emt 0:03:12]} 33. Rf2 {[%emt 0:01:21]} Rg3 {[%emt 0:06:19]} 34. Qc3 {[%emt 0:04:00]} Bc6 {[%emt 0:08:45]} 35. Rxf8+ {[%emt 0:00:46]} Kxf8 {[%emt 0:00:01]} 36. Rxg3 {[%emt 0:00:39]} hxg3 {[%emt 0:00:52]} 37. Qc5+ {[%emt 0:00:04]} Kf7 {[%emt 0:00:07]} 38. Qxa7 {[%emt 0:00:09]} Qe4 {[%emt 0:01:41]} 39. b4 {[%emt 0:02:06]} e5 {[%emt 0:01:45]} 40. b5 {[%emt 0:01:59]} Bd5 {[%emt 0:00:04]} 41. a4 {[%emt 0:01:42]} Ke6 {[%emt 0:02:38]} 42. a5 {[%emt 0:01:21]} Qd4+ {[%emt 0:03:48]} 43. Qxd4 {[%emt 0:00:02]} exd4 {[%emt 0:00:01]} 44. a6 {[%emt 0:01:44]} bxa6 {[%emt 0:00:56]} 45. bxa6 {[%emt 0:00:01]} Kd6 {[%emt 0:00:11]} 46. Bd3 {[%emt 0:03:17]} Kc5 {[%emt 0:01:01]} 47. Kf1 {[%emt 0:00:55]} g5 {[%emt 0:00:06]} 48. Be2 {[%emt 0:01:06]} Be4 {[%emt 0:00:17]} 49. Bg4 {[%emt 0:01:31]} Kb6 {[%emt 0:00:21]} 50. Bc8 {[%emt 0:01:13]} Bd3+ {[%emt 0:01:22]} 51. Ke1 {[%emt 0:00:48]} Kc7 {[%emt 0:01:02]} 52. Bb7 {[%emt 0:00:38]} Bb5 {[%emt 0:00:07]} 53. Kd2 {[%emt 0:00:26]} Bc4 {[%emt 0:00:43]} 54. Kc2 {[%emt 0:00:12]} Kb6 {[%emt 0:02:28]} 55. Kd2 {[%emt 0:00:09]} Bb5 {[%emt 0:00:47]} 56. Kc2 {[%emt 0:00:07]} Kc7 {[%emt 0:00:19]} 57. Kd2 {[%emt 0:00:07]} 1/2-1/2

[Event "FIDE World School-ch O-13 2025"]
[Site "Vrnjacka Banja"]
[Date "2025.03.22"]
[Round "4.2"]
[White "Wijerathna, Vinuka Dihain"]
[Black "Yang, Maxwell"]
[Result "1/2-1/2"]
[Annotator "RC"]
[ECO "B23"]
[WhiteElo "2117"]
[BlackElo "1970"]
[PlyCount "101"]
[EventDate "2025.03.19"]
[EventType "swiss"]
[EventCountry "SRB"]
[SourceTitle "playchess.com"]
[Source "ChessBase"]
[SourceQuality "1"]
[TimeControl "5400+30"]

1. e4 {[%emt 0:00:03]} c5 {[%emt 0:05:51]} 2. Nc3 {[%emt 0:00:04]} d6 {[%emt 0:00:16]} 3. d4 {[%emt 0:00:05]} cxd4 {[%emt 0:00:05]} 4. Qxd4 {[%emt 0:00:02]} Nc6 {[%emt 0:00:08]} 5. Qd2 {[%emt 0:00:03]} g6 {[%emt 0:00:04]} 6. b3 {[%emt 0:00:04]} Bh6 {[%emt 0:00:30]} 7. f4 {[%emt 0:00:06]} f5 {[%emt 0:00:12]} 8. Bb2 {[%emt 0:00:11]} Nf6 {[%emt 0:00:06]} 9. O-O-O {[%emt 0:00:05]} Rf8 {[%emt 0:00:06]} 10. exf5 {[%emt 0:01:34]} Bxf5 {[%emt 0:00:41]} 11. Bb5 {[%emt 0:00:07]} Qb6 {[%emt 0:02:28]} 12. Nge2 {[%emt 0:02:00]} O-O-O {[%emt 0:06:00]} 13. Rhf1 {[%emt 0:26:26]} Kb8 {[%emt 0:10:07]} 14. Bxc6 {[%emt 0:05:41]} Qxc6 {[%emt 0:05:06]} 15. Nd4 {[%emt 0:00:27]} Qd7 {[%emt 0:01:16]} 16. Nxf5 {[%emt 0:01:53]} Qxf5 {[%emt 0:01:05]} 17. Kb1 {[%emt 0:07:15]} Rf7 {[%emt 0:07:43]} 18. g3 {[%emt 0:07:44]} e5 {[%emt 0:11:27]} 19. Nb5 {[%emt 0:22:09]} Ne4 {[%emt 0:05:40]} 20. Qd3 {[%emt 0:01:51]} a6 {[%emt 0:03:38]} 21. g4 {[%emt 0:09:07]} Qxg4 {[%emt 0:07:19]} 22. Qxe4 {[%emt 0:00:06]} axb5 {[%emt 0:00:12]} 23. Qd5 {[%emt 0:00:03]} Rfd7 {[%emt 0:24:38]} 24. fxe5 {[%emt 0:03:29]} dxe5 {[%emt 0:00:06]} 25. Qxe5+ {[%emt 0:00:06]} Ka8 {[%emt 0:00:20]} 26. Rxd7 {[%emt 0:02:16]} Qxd7 {[%emt 0:00:06]} 27. a4 {[%emt 0:04:52]} Qd5 {[%emt 0:02:40]} 28. axb5 {[%emt 0:02:08]} Qxe5 {[%emt 0:00:59]} 29. Bxe5 {[%emt 0:05:03]} Rd5 {[%emt 0:00:08]} 30. Bg3 {[%emt 0:00:00]} Rxb5 {[%emt 0:02:53]} 31. Rf7 {[%emt 0:00:00]} Be3 {[%emt 0:00:19]} 32. Rxh7 {[%emt 0:00:00]} Rf5 {[%emt 0:00:51]} 33. Rd7 {[%emt 0:00:00]} Ka7 {[%emt 0:00:35]} 34. Kb2 {[%emt 0:00:00]} Bf2 {[%emt 0:00:50]} 35. Bxf2+ {[%emt 0:01:25]} Rxf2 {[%emt 0:00:10]} 36. h4 {[%emt 0:00:02]} Rf4 {[%emt 0:00:12]} 37. Rh7 {[%emt 0:00:06]} Rg4 {[%emt 0:00:09]} 38. c4 {[%emt 0:00:53]} Kb6 {[%emt 0:01:11]} 39. Kc3 {[%emt 0:00:07]} g5 {[%emt 0:01:05]} 40. Rh6+ {[%emt 0:00:55]} Ka7 {[%emt 0:00:34]} 41. h5 {[%emt 0:00:54]} Rh4 {[%emt 0:00:12]} 42. Kb4 {[%emt 0:00:50]} g4 {[%emt 0:00:26]} 43. Rg6 {[%emt 0:01:01]} Rxh5 {[%emt 0:00:08]} 44. Rxg4 {[%emt 0:00:04]} Rf5 {[%emt 0:00:33]} 45. Rg7 {[%emt 0:00:12]} Rf6 {[%emt 0:00:34]} 46. Re7 {[%emt 0:00:53]} Rb6+ {[%emt 0:00:52]} 47. Kc3 {[%emt 0:00:05]} Rh6 {[%emt 0:03:29]} 48. b4 {[%emt 0:00:43]} Rh3+ {[%emt 0:00:00]} 49. Kb2 {[%emt 0:00:05]} Ka6 {[%emt 0:00:00]} 50. Re6+ {[%emt 0:00:07]} Ka7 {[%emt 0:00:00]} 51. c5 {[%emt 0:00:45]} 1/2-1/2

[Event "FIDE World School-ch O-13 2025"]
[Site "Vrnjacka Banja"]
[Date "2025.03.22"]
[Round "4.3"]
[White "Rusu, Lucas"]
[Black "Zharas, Aldiyar"]
[Result "1-0"]
[Annotator "RC"]
[ECO "B33"]
[WhiteElo "2049"]
[BlackElo "1924"]
[PlyCount "155"]
[EventDate "2025.03.19"]
[EventType "swiss"]
[EventCountry "SRB"]
[SourceTitle "playchess.com"]
[Source "ChessBase"]
[SourceQuality "1"]
[TimeControl "5400+30"]

1. e4 {[%emt 0:00:01]} c5 {[%emt 0:00:07]} 2. Nf3 {[%emt 0:00:06]} Nc6 {[%emt 0:00:05]} 3. d4 {[%emt 0:00:04]} cxd4 {[%emt 0:00:03]} 4. Nxd4 {[%emt 0:00:03]} Nf6 {[%emt 0:00:06]} 5. Nc3 {[%emt 0:00:04]} e5 {[%emt 0:00:04]} 6. Ndb5 {[%emt 0:00:03]} d6 {[%emt 0:00:05]} 7. Bg5 {[%emt 0:00:12]} a6 {[%emt 0:00:07]} 8. Na3 {[%emt 0:00:01]} b5 {[%emt 0:00:07]} 9. Nd5 {[%emt 0:01:47]} Be7 {[%emt 0:00:12]} 10. Bxf6 {[%emt 0:00:02]} Bxf6 {[%emt 0:00:07]} 11. c3 {[%emt 0:01:09]} Rb8 {[%emt 0:00:12]} 12. Nc2 {[%emt 0:06:16]} Bg5 {[%emt 0:00:27]} 13. g3 {[%emt 0:05:01]} O-O {[%emt 0:00:07]} 14. Bg2 {[%emt 0:00:13]} Be6 {[%emt 0:00:39]} 15. O-O {[%emt 0:05:29]} Ne7 {[%emt 0:02:46]} 16. Ncb4 {[%emt 0:13:16]} Bxd5 {[%emt 0:03:55]} 17. Nxd5 {[%emt 0:05:13]} f5 {[%emt 0:03:23]} 18. exf5 {[%emt 0:04:06]} Nxf5 {[%emt 0:04:37]} 19. Qd3 {[%emt 0:04:38]} Ne7 {[%emt 0:05:24]} 20. Rad1 {[%emt 0:02:27]} Kh8 {[%emt 1:17:57]} 21. Be4 {[%emt 0:16:48]} Nxd5 {[%emt 0:00:00]} 22. Bxd5 {[%emt 0:00:23]} Rf6 {[%emt 0:00:00]} 23. h4 {[%emt 0:03:01]} Bh6 {[%emt 0:00:00]} 24. Be4 {[%emt 0:00:11]} g6 {[%emt 0:00:00]} 25. Kg2 {[%emt 0:08:00]} Qb6 {[%emt 0:00:00]} 26. f3 {[%emt 0:01:43]} Rd8 {[%emt 0:00:00]} 27. h5 {[%emt 0:07:24]} Kg7 {[%emt 0:00:00]} 28. hxg6 {[%emt 0:00:45]} hxg6 {[%emt 0:00:00]} 29. Rh1 {[%emt 0:02:11]} Qc5 {[%emt 0:00:00]} 30. Bd5 {[%emt 0:01:39]} Rh8 {[%emt 0:00:00]} 31. Qe4 {[%emt 0:00:58]} a5 {[%emt 0:00:00]} 32. Bb3 {[%emt 0:00:57]} Qc7 {[%emt 0:00:00]} 33. Rh3 {[%emt 0:01:06]} a4 {[%emt 0:00:00]} 34. Bc2 {[%emt 0:00:18]} a3 {[%emt 0:00:00]} 35. bxa3 {[%emt 0:03:23]} Qxc3 {[%emt 0:00:00]} 36. Bb3 {[%emt 0:00:26]} Rhf8 {[%emt 0:00:00]} 37. Rf1 {[%emt 0:02:12]} Rc8 {[%emt 0:00:00]} 38. Rf2 {[%emt 0:01:13]} Qa5 {[%emt 0:00:00]} 39. Qh4 {[%emt 0:00:31]} Rh8 {[%emt 0:00:00]} 40. Rc2 {[%emt 0:00:28]} Qd8 {[%emt 0:00:00]} 41. Qe4 {[%emt 0:01:37]} Qd7 {[%emt 0:00:00]} 42. Qd5 {[%emt 0:01:30]} Rff8 {[%emt 0:00:00]} 43. Qc6 {[%emt 0:02:40]} Qxc6 {[%emt 0:00:00]} 44. Rxc6 {[%emt 0:00:03]} Rc8 {[%emt 0:00:00]} 45. Rxd6 {[%emt 0:00:41]} Rhd8 {[%emt 0:00:00]} 46. Rxd8 {[%emt 0:03:11]} Rxd8 {[%emt 0:00:00]} 47. Rh4 {[%emt 0:00:00]} Rd4 {[%emt 0:00:00]} 48. Rxd4 {[%emt 0:00:00]} exd4 {[%emt 0:00:00]} 49. Bc2 {[%emt 0:00:00]} Bc1 {[%emt 0:00:00]} 50. Bd3 {[%emt 0:00:00]} Bxa3 {[%emt 0:00:00]} 51. Bxb5 {[%emt 0:00:00]} g5 {[%emt 0:00:00]} 52. f4 {[%emt 0:00:00]} gxf4 {[%emt 0:00:00]} 53. gxf4 {[%emt 0:00:00]} Kf6 {[%emt 0:00:00]} 54. Kf3 {[%emt 0:00:00]} Ke6 {[%emt 0:00:00]} 55. Ke4 {[%emt 0:00:00]} Bc5 {[%emt 0:00:00]} 56. Bc4+ {[%emt 0:00:00]} Kd6 {[%emt 0:00:00]} 57. f5 {[%emt 0:00:05]} Bb6 {[%emt 0:00:00]} 58. f6 {[%emt 0:02:32]} Bc5 {[%emt 0:00:00]} 59. Kf5 {[%emt 0:00:19]} Ba3 {[%emt 0:00:00]} 60. Kg6 {[%emt 0:00:25]} Kc5 {[%emt 0:00:00]} 61. Bd3 {[%emt 0:00:15]} Kb4 {[%emt 0:00:00]} 62. Kf5 {[%emt 0:02:22]} Kc3 {[%emt 0:00:00]} 63. Ke4 {[%emt 0:00:04]} Bc5 {[%emt 0:00:00]} 64. a4 {[%emt 0:00:29]} Kb4 {[%emt 0:00:00]} 65. Kd5 {[%emt 0:00:08]} Bf8 {[%emt 0:00:00]} 66. Bc2 {[%emt 0:00:05]} d3 {[%emt 0:00:00]} 67. Bd1 {[%emt 0:00:07]} Ka5 {[%emt 0:05:37]} 68. Ke6 {[%emt 0:00:12]} Kb6 {[%emt 0:00:21]} 69. Kf7 {[%emt 0:00:08]} Bb4 {[%emt 0:00:14]} 70. Ke8 {[%emt 0:00:08]} d2 {[%emt 0:00:38]} 71. f7 {[%emt 0:00:04]} Ka5 {[%emt 0:00:15]} 72. f8=Q {[%emt 0:00:18]} Bxf8 {[%emt 0:00:06]} 73. Kxf8 {[%emt 0:00:00]} Kb4 {[%emt 0:00:09]} 74. Ke7 {[%emt 0:00:03]} Kc5 {[%emt 0:00:27]} 75. Ke6 {[%emt 0:00:06]} Kc6 {[%emt 0:00:06]} 76. Ke5 {[%emt 0:00:04]} Kc5 {[%emt 0:00:04]} 77. Ke4 {[%emt 0:00:03]} Kc4 {[%emt 0:00:07]} 78. Ke3 {[%emt 0:00:04]} 1-0

[Event "FIDE World School-ch O-13 2025"]
[Site "Vrnjacka Banja"]
[Date "2025.03.22"]
[Round "4.4"]
[White "Petroff, Vlad"]
[Black "Lee, Tsuen Jin Aiesec"]
[Result "1/2-1/2"]
[Annotator "RC"]
[ECO "D02"]
[WhiteElo "2030"]
[BlackElo "1693"]
[PlyCount "108"]
[EventDate "2025.03.19"]
[EventType "swiss"]
[EventCountry "SRB"]
[SourceTitle "playchess.com"]
[Source "ChessBase"]
[SourceQuality "1"]
[TimeControl "5400+30"]

1. d4 {[%emt 0:00:07]} Nf6 {[%emt 0:00:04]} 2. Nf3 {[%emt 0:00:16]} g6 {[%emt 0:00:37]} 3. Nbd2 {[%emt 0:00:31]} d5 {[%emt 0:00:08]} 4. e3 {[%emt 0:00:17]} Bg7 {[%emt 0:00:07]} 5. b4 {[%emt 0:00:56]} O-O {[%emt 0:00:57]} 6. c4 {[%emt 0:03:22]} a5 {[%emt 0:01:37]} 7. b5 {[%emt 0:01:18]} c6 {[%emt 0:01:33]} 8. a4 {[%emt 0:02:35]} Ne4 {[%emt 0:00:19]} 9. Bb2 {[%emt 0:03:41]} Bg4 {[%emt 0:01:43]} 10. Be2 {[%emt 0:01:29]} Nd7 {[%emt 0:03:10]} 11. O-O {[%emt 0:05:57]} cxb5 {[%emt 0:32:48]} 12. cxb5 {[%emt 0:00:34]} Bxf3 {[%emt 0:19:29]} 13. Nxf3 {[%emt 0:02:44]} Nb6 {[%emt 0:01:13]} 14. Qb3 {[%emt 0:03:13]} Qd7 {[%emt 0:01:56]} 15. Ba3 {[%emt 0:06:30]} Rac8 {[%emt 0:04:47]} 16. Rac1 {[%emt 0:06:31]} Qe6 {[%emt 0:07:28]} 17. Rfd1 {[%emt 0:07:04]} Rfd8 {[%emt 0:05:30]} 18. h3 {[%emt 0:05:55]} h5 {[%emt 0:02:04]} 19. Bd3 {[%emt 0:01:51]} Nc4 {[%emt 0:14:30]} 20. Bxc4 {[%emt 0:03:04]} dxc4 {[%emt 0:00:00]} 21. Qa2 {[%emt 0:01:40]} Bf6 {[%emt 0:00:00]} 22. Nd2 {[%emt 0:08:16]} Nxd2 {[%emt 0:00:00]} 23. Rxd2 {[%emt 0:01:13]} Kg7 {[%emt 0:00:00]} 24. Rdc2 {[%emt 0:01:06]} Rc7 {[%emt 0:00:00]} 25. Qb2 {[%emt 0:12:21]} b6 {[%emt 0:00:00]} 26. Rc3 {[%emt 0:03:56]} Rdc8 {[%emt 0:00:00]} 27. Qd2 {[%emt 0:00:25]} Kh7 {[%emt 0:00:00]} 28. R3c2 {[%emt 0:00:47]} Kg7 {[%emt 0:00:00]} 29. Bb2 {[%emt 0:01:02]} Qd6 {[%emt 0:00:00]} 30. e4 {[%emt 0:04:02]} Qd8 {[%emt 0:02:40]} 31. Qe3 {[%emt 0:06:36]} e6 {[%emt 0:00:25]} 32. Bc3 {[%emt 0:02:00]} Kh7 {[%emt 0:00:24]} 33. Rd1 {[%emt 0:01:45]} Rd7 {[%emt 0:00:35]} 34. Rcd2 {[%emt 0:01:36]} Bg5 {[%emt 0:00:59]} 35. f4 {[%emt 0:00:02]} Be7 {[%emt 0:00:07]} 36. Kh1 {[%emt 0:00:44]} Bb4 {[%emt 0:00:35]} 37. d5 {[%emt 0:00:59]} Bxc3 {[%emt 0:00:32]} 38. Qxc3 {[%emt 0:00:02]} exd5 {[%emt 0:00:23]} 39. exd5 {[%emt 0:00:50]} Rd6 {[%emt 0:00:16]} 40. Kh2 {[%emt 0:02:18]} Rc5 {[%emt 0:00:58]} 41. Qe5 {[%emt 0:00:39]} c3 {[%emt 0:00:28]} 42. Rc2 {[%emt 0:00:14]} Rdxd5 {[%emt 0:00:55]} 43. Rxd5 {[%emt 0:00:39]} Qxd5 {[%emt 0:00:05]} 44. Qxd5 {[%emt 0:00:09]} Rxd5 {[%emt 0:00:03]} 45. Rxc3 {[%emt 0:00:19]} Rd4 {[%emt 0:00:02]} 46. Rc6 {[%emt 0:00:34]} Rxa4 {[%emt 0:00:11]} 47. f5 {[%emt 0:00:51]} Rf4 {[%emt 0:01:21]} 48. fxg6+ {[%emt 0:00:13]} fxg6 {[%emt 0:00:03]} 49. Rxb6 {[%emt 0:00:06]} Rb4 {[%emt 0:00:05]} 50. Rb7+ {[%emt 0:00:44]} Kh6 {[%emt 0:00:09]} 51. b6 {[%emt 0:00:36]} a4 {[%emt 0:00:03]} 52. Ra7 {[%emt 0:00:17]} Rxb6 {[%emt 0:00:03]} 53. Rxa4 {[%emt 0:00:06]} Rc6 {[%emt 0:00:10]} 54. h4 {[%emt 0:00:19]} Rb6 {[%emt 0:00:05]} 1/2-1/2

[Event "FIDE World School-ch O-13 2025"]
[Site "Vrnjacka Banja"]
[Date "2025.03.22"]
[Round "4.8"]
[White "Simiyu Jadon"]
[Black "Ilcic, Aleksa"]
[Result "0-1"]
[Annotator "RC"]
[ECO "B31"]
[WhiteElo "1937"]
[BlackElo "1822"]
[PlyCount "72"]
[EventDate "2025.03.19"]
[EventType "swiss"]
[EventCountry "SRB"]
[SourceTitle "playchess.com"]
[Source "ChessBase"]
[SourceQuality "1"]
[TimeControl "5400+30"]

1. e4 {[%emt 0:00:07]} c5 {[%emt 0:00:17]} 2. Nf3 {[%emt 0:00:06]} Nc6 {[%emt 0:00:06]} 3. Bb5 {[%emt 0:00:06]} g6 {[%emt 0:00:08]} 4. Bxc6 {[%emt 0:00:06]} dxc6 {[%emt 0:00:12]} 5. d3 {[%emt 0:00:08]} Bg7 {[%emt 0:00:11]} 6. O-O {[%emt 0:00:11]} e5 {[%emt 0:00:57]} 7. h3 {[%emt 0:00:07]} Qc7 {[%emt 0:01:46]} 8. Qd2 {[%emt 0:00:33]} b6 {[%emt 0:03:59]} 9. a4 {[%emt 0:00:28]} a5 {[%emt 0:03:52]} 10. Qc3 {[%emt 0:00:10]} h6 {[%emt 0:01:22]} 11. Nbd2 {[%emt 0:01:36]} Be6 {[%emt 0:01:30]} 12. Re1 {[%emt 0:05:23]} Rd8 {[%emt 0:08:31]} 13. Nc4 {[%emt 0:02:38]} Bxc4 {[%emt 0:00:24]} 14. dxc4 {[%emt 0:01:01]} Ne7 {[%emt 0:00:29]} 15. Be3 {[%emt 0:02:04]} O-O {[%emt 0:00:48]} 16. Rad1 {[%emt 0:04:13]} Nc8 {[%emt 0:09:58]} 17. Bd2 {[%emt 0:28:06]} Rfe8 {[%emt 0:17:21]} 18. Qe3 {[%emt 0:12:12]} Nd6 {[%emt 0:24:37]} 19. b3 {[%emt 0:08:58]} f5 {[%emt 0:04:06]} 20. exf5 {[%emt 0:06:13]} e4 {[%emt 0:01:19]} 21. Nh2 {[%emt 0:05:12]} Nxf5 {[%emt 0:00:25]} 22. Qf4 {[%emt 0:00:13]} Be5 {[%emt 0:00:17]} 23. Qg4 {[%emt 0:00:24]} Bxh2+ {[%emt 0:01:58]} 24. Kh1 {[%emt 0:00:08]} Kh7 {[%emt 0:03:21]} 25. g3 {[%emt 0:01:21]} Bxg3 {[%emt 0:05:31]} 26. fxg3 {[%emt 0:00:14]} e3 {[%emt 0:00:46]} 27. Bc3 {[%emt 0:01:35]} Qxg3 {[%emt 0:00:06]} 28. Rxd8 {[%emt 0:05:02]} Rxd8 {[%emt 0:00:17]} 29. Qxg3 {[%emt 0:01:33]} Nxg3+ {[%emt 0:00:06]} 30. Kg2 {[%emt 0:00:10]} Nf5 {[%emt 0:00:07]} 31. Re2 {[%emt 0:00:51]} Rd1 {[%emt 0:00:28]} 32. Be5 {[%emt 0:01:58]} Rd2 {[%emt 0:01:15]} 33. Kf1 {[%emt 0:00:14]} Rd7 {[%emt 0:01:55]} 34. Kg2 {[%emt 0:00:34]} g5 {[%emt 0:01:00]} 35. Bh2 {[%emt 0:00:46]} Kg6 {[%emt 0:00:19]} 36. Bg1 {[%emt 0:00:13]} Rd2 {[%emt 0:00:28]} 0-1